fUSD/lending_fUSD_20250521
["ID","MTS","AMOUNT","RATE_DAILY","PERIOD"]
[361815874,1747823531436,-637.39,0.0003452,5]
[361815875,1747823531447,-2368.39,0.0003452,5]
[361815876,1747823531458,-932.97,0.0003452,5]
[361815877,1747823531468,-788.04,0.0003452,5]
[361815878,1747823531478,-475.79,0.0003452,5]
[361815879,1747823531487,-469.81,0.0003452,5]
[361815880,1747823531500,-420.0,0.0003452,5]
[361815881,1747823531509,-1192.06,0.0003452,5]
[361815882,1747823531519,-1158.88,0.0003452,5]
[361815883,1747823531530,-2693.72,0.0003452,5]
[361815884,1747823531541,-2741.78,0.0003452,5]
[361815885,1747823531551,-1351.52,0.0003452,5]
[361815886,1747823531561,-420.0,0.0003452,5]
[361815887,1747823531571,-1167.31,0.0003452,5]
[361815888,1747823531580,-420.0,0.0003452,5]
[361815889,1747823531590,-506.87,0.0003452,5]
[361815890,1747823531600,-1450.92,0.0003452,5]
[361815891,1747823531610,-664.46,0.0003452,5]
[361815892,1747823531620,-2096.4,0.0003452,5]
[361815893,1747823531631,-783.68,0.0003452,5]
[361815894,1747823531642,-1675.88,0.0003452,5]
[361815895,1747823531652,-421.11,0.0003452,5]
[361815896,1747823531663,-420.0,0.0003452,5]
[361815897,1747823531673,-655.43,0.0003452,5]
[361815898,1747823531683,-1330.16,0.0003452,5]
[361815899,1747823531694,-420.0,0.0003452,5]
[361815900,1747823531704,-628.75,0.0003452,5]
[361815901,1747823531715,-470.23,0.0003452,5]
[361815902,1747823531725,-789.43,0.0003452,5]
[361815903,1747823531736,-2066.32,0.0003452,5]
[361815904,1747823531746,-543.38,0.0003452,5]
[361815905,1747823531756,-1884.88,0.0003452,5]
[361815906,1747823531766,-420.0,0.0003452,5]
[361815907,1747823531776,-443.39,0.0003452,5]
[361815908,1747823531786,-814.52,0.0003452,5]
[361815909,1747823531796,-420.0,0.0003452,5]
[361815910,1747823531806,-468.75,0.0003452,5]
[361815911,1747823531815,-2280.59,0.0003452,5]
[361815912,1747823531825,-420.0,0.0003452,5]
[361815913,1747823531835,-420.0,0.0003452,5]
[361815914,1747823531845,-420.0,0.0003452,5]
[361815915,1747823531855,-420.0,0.0003452,5]
[361815916,1747823531865,-1660.08,0.0003452,5]
[361815917,1747823531875,-420.0,0.0003452,5]
[361815918,1747823531885,-891.37,0.0003452,5]
[361815919,1747823531895,-420.0,0.0003452,5]
[361815920,1747823531905,-2531.44,0.0003452,5]
[361815921,1747823531915,-1229.28,0.0003452,5]
[361815922,1747823531926,-420.0,0.0003452,5]
[361815923,1747823531936,-562.73,0.0003452,5]
[361815924,1747823531947,-420.0,0.0003452,5]
[361815925,1747823531957,-420.0,0.0003452,5]
[361815926,1747823531967,-420.0,0.0003452,5]
[361815927,1747823531977,-1520.14,0.0003452,5]
[361815928,1747823531986,-639.64,0.0003452,5]
[361815929,1747823531998,-420.0,0.0003452,5]
[361815930,1747823532008,-2002.78,0.0003452,5]
[361815931,1747823532018,-420.0,0.0003452,5]
[361815932,1747823532028,-504.03,0.0003452,5]
[361815933,1747823532039,-420.0,0.0003452,5]
[361815934,1747823532048,-420.0,0.0003452,5]
[361815935,1747823532058,-756.35,0.0003452,5]
[361815936,1747823532068,-1155.6,0.0003452,5]
[361815937,1747823532078,-420.0,0.0003452,5]
[361815938,1747823532088,-420.0,0.0003452,5]
[361815939,1747823532098,-2487.3,0.0003452,5]
[361815940,1747823532107,-829.63,0.0003452,5]
[361815941,1747823532117,-440.4,0.0003452,5]
[361815942,1747823532128,-420.0,0.0003452,5]
[361815943,1747823532139,-420.0,0.0003452,5]
[361815944,1747823532150,-1069.06,0.0003452,5]
[361815945,1747823532162,-512.22,0.0003452,5]
[361815946,1747823532173,-1131.24,0.0003452,5]
[361815947,1747823532184,-3548.27,0.0003452,5]
[361815948,1747823532195,-420.0,0.0003452,5]
[361815949,1747823532205,-531.37,0.0003452,5]
[361815950,1747823532215,-420.0,0.0003452,5]
[361815951,1747823532226,-438.38,0.0003452,5]
[361815952,1747823532238,-420.0,0.0003452,5]
[361815953,1747823532248,-1167.92,0.0003452,5]
[361815954,1747823532258,-836.66,0.0003452,5]
[361815955,1747823532268,-1758.59,0.0003452,5]
[361815956,1747823532278,-2244.73,0.0003452,5]
[361815957,1747823532290,-500.0,0.0003452,5]
[361815958,1747823532300,-1671.68,0.0003452,5]
[361815959,1747823532310,-706.99,0.0003452,5]
[361815960,1747823532320,-1303.3,0.0003452,5]
[361815961,1747823532330,-630.7,0.0003452,5]
[361815962,1747823532341,-420.0,0.0003452,5]
[361815963,1747823532351,-1546.03,0.0003452,5]
[361815964,1747823532361,-1449.1,0.0003452,5]
[361815965,1747823532376,-1084.11,0.0003452,5]
[361815966,1747823532386,-796.16,0.0003452,5]
[361815967,1747823532396,-829.47,0.0003452,5]
[361815968,1747823532406,-420.0,0.0003452,5]
[361815969,1747823532417,-560.22,0.0003452,5]
[361815970,1747823532427,-2061.87,0.0003452,5]
[361815971,1747823532438,-677.92,0.0003452,5]
[361815972,1747823532450,-1832.34,0.0003452,5]
[361815973,1747823532460,-1759.24,0.0003452,5]
[361815974,1747823532470,-420.0,0.0003452,5]
[361815975,1747823532480,-2008.9,0.0003452,5]
[361815976,1747823532489,-420.0,0.0003452,5]
[361815977,1747823532499,-603.25,0.0003452,5]
[361815978,1747823532509,-420.0,0.0003452,5]
[361815979,1747823532518,-3335.62,0.0003452,5]
[361815980,1747823532528,-794.93,0.0003452,5]
[361815981,1747823532538,-462.11,0.0003452,5]
[361815982,1747823532547,-1384.78,0.0003452,5]
[361815983,1747823532557,-3088.45,0.0003452,5]
[361815984,1747823532567,-3415.98,0.0003452,5]
[361815985,1747823532577,-420.0,0.0003452,5]
[361815986,1747823532587,-420.0,0.0003452,5]
[361815987,1747823532596,-475.97,0.0003452,5]
[361815988,1747823532606,-420.0,0.0003452,5]
[361815989,1747823532616,-1441.04,0.0003452,5]
[361815990,1747823532626,-1360.17,0.0003452,5]
[361815991,1747823532636,-799.95,0.0003452,5]
[361815992,1747823532648,-420.0,0.0003452,5]
[361815993,1747823532659,-1022.16,0.0003452,5]
[361815994,1747823532669,-2905.57,0.0003452,5]
[361815995,1747823532679,-420.0,0.0003452,5]
[361815996,1747823532689,-420.0,0.0003452,5]
[361815997,1747823532699,-2154.53,0.0003452,5]
[361815998,1747823532710,-420.0,0.0003452,5]
[361815999,1747823532719,-1412.77,0.0003452,5]
[361816000,1747823532730,-1804.92,0.0003452,5]
[361816001,1747823532739,-931.82,0.0003452,5]
[361816002,1747823532749,-3820.81,0.0003452,5]
[361816003,1747823532759,-420.0,0.0003452,5]
[361816004,1747823532769,-420.0,0.0003452,5]
[361816005,1747823532779,-420.0,0.0003452,5]
[361816006,1747823532789,-446.52,0.0003452,5]
[361816007,1747823532798,-3379.22,0.0003452,5]
[361816008,1747823532808,-420.0,0.0003452,5]
[361816009,1747823532818,-552.29,0.0003452,5]
[361816010,1747823532828,-2204.62,0.0003452,5]
[361816011,1747823532838,-1365.61,0.0003452,5]
[361816012,1747823532848,-739.98,0.0003452,5]
[361816013,1747823532858,-1686.16,0.0003452,5]
[361816014,1747823532868,-638.15,0.0003452,5]
[361816015,1747823532878,-2851.0,0.0003452,5]
[361816016,1747823532887,-420.0,0.0003452,5]
[361816017,1747823532897,-420.0,0.0003452,5]
[361816018,1747823532908,-420.0,0.0003452,5]
[361816019,1747823532918,-669.03,0.0003452,5]
[361816020,1747823532928,-641.93,0.0003452,5]
[361816021,1747823533074,-1513.514558,0.0003452,5]
[361816022,1747823533083,-1056.24,0.0003452,5]
[361816023,1747823533093,-605.2,0.0003452,5]
[361816024,1747823533103,-420.0,0.0003452,5]
[361816025,1747823533114,-3414.72,0.0003452,5]
[361816026,1747823533124,-420.0,0.0003452,5]
[361816027,1747823533135,-456.44,0.0003452,5]
[361816028,1747823533144,-420.0,0.0003452,5]
[361816029,1747823533154,-2738.58,0.0003452,5]
[361816030,1747823533163,-626.72,0.0003452,5]
[361816031,1747823533173,-1961.22,0.0003452,5]
[361816032,1747823533183,-4019.16,0.0003452,5]
[361816033,1747823533193,-420.0,0.0003452,5]
[361816034,1747823533203,-420.0,0.0003452,5]
[361816035,1747823533212,-420.0,0.0003452,5]
[361816036,1747823533222,-437.02,0.0003452,5]
[361816037,1747823533232,-501.19,0.0003452,5]
[361816038,1747823533242,-420.0,0.0003452,5]
[361816039,1747823533251,-420.0,0.0003452,5]
[361816040,1747823533260,-3829.73,0.0003452,5]
[361816041,1747823533270,-1195.86,0.0003452,5]
[361816042,1747823533279,-1171.35,0.0003452,5]
[361816043,1747823533288,-1602.68,0.0003452,5]
[361816044,1747823533298,-1595.56,0.0003452,5]
[361816045,1747823533307,-1403.63,0.0003452,5]
[361816046,1747823533316,-420.0,0.0003452,5]
[361816047,1747823533326,-1620.22,0.0003452,5]
[361816048,1747823533335,-2127.07,0.0003452,5]
[361816049,1747823533345,-975.42,0.0003452,5]
[361816050,1747823533354,-420.0,0.0003452,5]
[361816051,1747823533365,-1651.18,0.0003452,5]
[361816052,1747823533375,-663.27,0.0003452,5]
[361816053,1747823533384,-4718.07,0.0003452,5]
[361816054,1747823533394,-560.95,0.0003452,5]
[361816055,1747823533404,-154.385502,0.0003452,5]
[361816056,1747823533413,-701.41,0.0003452,5]
[361816057,1747823533422,-950.44,0.0003452,5]
[361816058,1747823533432,-420.0,0.0003452,5]
[361816059,1747823533441,-708.42,0.0003452,5]
[361816060,1747823533452,-3358.3,0.0003452,5]
[361816061,1747823533462,-420.0,0.0003452,5]
[361816062,1747823533471,-1131.94,0.0003452,5]
[361816063,1747823533481,-3071.77,0.0003452,5]
[361816064,1747823533490,-1890.69,0.0003452,5]
[361816065,1747823533499,-2588.8,0.0003452,5]
[361816066,1747823533508,-420.0,0.0003452,5]
[361816067,1747823533518,-1081.97,0.0003452,5]
[361816068,1747823533527,-447.09,0.0003452,5]
[361816069,1747823533537,-1061.79,0.0003452,5]
[361816070,1747823533547,-3165.26,0.0003452,5]
[361816071,1747823533557,-1578.73,0.0003452,5]
[361816072,1747823533567,-420.0,0.0003452,5]
[361816073,1747823533576,-801.31,0.0003452,5]
[361816074,1747823533586,-437.54,0.0003452,5]
[361816075,1747823533596,-420.0,0.0003452,5]
[361816076,1747823533605,-1117.87,0.0003452,5]
[361816077,1747823533615,-590.41,0.0003452,5]
[361816078,1747823533624,-646.24,0.0003452,5]
[361816079,1747823533634,-469.33,0.0003452,5]
[361816080,1747823533645,-1582.05,0.0003452,5]
[361816081,1747823533655,-420.0,0.0003452,5]
[361816082,1747823533664,-944.65,0.0003452,5]
[361816083,1747823533674,-1388.27,0.0003452,5]
[361816084,1747823533683,-420.0,0.0003452,5]
[361816085,1747823533692,-420.0,0.0003452,5]
[361816086,1747823533702,-817.62,0.0003452,5]
[361816087,1747823533712,-420.0,0.0003452,5]
[361816088,1747823533722,-1313.42,0.0003452,5]
[361816089,1747823533732,-2712.821305,0.0003452,5]
[361816090,1747823533742,-2499.18,0.0003452,5]
[361816091,1747823533751,-420.0,0.0003452,5]
[361816092,1747823533762,-591.99,0.0003452,5]
[361816093,1747823533771,-420.0,0.0003452,5]
[361816094,1747823533781,-2676.06,0.0003452,5]
[361816095,1747823533790,-420.0,0.0003452,5]
[361816096,1747823533800,-420.0,0.0003452,5]
[361816097,1747823533809,-420.0,0.0003452,5]
[361816098,1747823533819,-1630.17,0.0003452,5]
[361816099,1747823533829,-2046.62,0.0003452,5]
[361816100,1747823533838,-707.44,0.0003452,5]
[361816101,1747823533847,-420.0,0.0003452,5]
[361816102,1747823533857,-420.0,0.0003452,5]
[361816103,1747823533866,-524.92,0.0003452,5]
[361816104,1747823533875,-844.05,0.0003452,5]
[361816105,1747823533885,-2122.24,0.0003452,5]
[361816106,1747823533894,-603.94,0.0003452,5]
[361816107,1747823533904,-5021.23,0.0003452,5]
[361816108,1747823533914,-1529.49,0.0003452,5]
[361816109,1747823533924,-1386.81,0.0003452,5]
[361816110,1747823533933,-1250.7,0.0003452,5]
[361816111,1747823533943,-420.0,0.0003452,5]
[361816112,1747823533952,-1682.48,0.0003452,5]
[361816113,1747823533962,-730.49,0.0003452,5]
[361816114,1747823533972,-420.0,0.0003452,5]
[361816115,1747823533981,-447.9,0.0003452,5]
[361816116,1747823533991,-499.21512011,0.0003452,5]
[361816117,1747823534001,-1324.88,0.0003452,5]
[361816118,1747823534010,-2229.66,0.0003452,5]
[361816119,1747823534020,-472.1,0.0003452,5]
[361816120,1747823534029,-420.0,0.0003452,5]
[361816121,1747823534039,-434.93,0.0003452,5]
[361816122,1747823534049,-185.7220969,0.0003452,5]
[361816123,1747823534058,-1282.33,0.0003452,5]
[361816124,1747823534067,-420.0,0.0003452,5]
[361816125,1747823534080,-444.34,0.0003452,5]
[361816126,1747823534089,-2643.47,0.0003452,5]
[361816127,1747823534099,-556.65205459,0.0003452,5]
[361816128,1747823534108,-420.0,0.0003452,5]
[361816129,1747823534117,-1343.09,0.0003452,5]
[361816130,1747823534127,-600.65,0.0003452,5]
[361816131,1747823534136,-1076.93,0.0003452,5]
[361816132,1747823534145,-420.0,0.0003452,5]
[361816133,1747823534155,-1416.84,0.0003452,5]
[361816134,1747823534164,-1332.5,0.0003452,5]
[361816135,1747823534173,-1392.97,0.0003452,5]
[361816136,1747823534183,-682.19,0.0003452,5]
[361816137,1747823534192,-438.34,0.0003452,5]
[361816138,1747823534201,-313.61399081,0.0003452,5]
[361816139,1747823534210,-791.4,0.0003452,5]
[361816140,1747823534220,-1000.0,0.0003452,30]
[361816141,1747823534229,-632.83,0.0003452,5]
[361816142,1747823534238,-420.0,0.0003452,5]
[361816143,1747823534247,-420.0,0.0003452,5]
[361816144,1747823534257,-713.78,0.0003452,5]
[361816145,1747823534266,-2568.63,0.0003452,5]
[361816146,1747823534275,-420.0,0.0003452,5]
[361816147,1747823534285,-420.0,0.0003452,5]
[361816148,1747823534294,-1222.57,0.0003452,5]
[361816149,1747823534303,-420.0,0.0003452,5]
[361816150,1747823534313,-420.0,0.0003452,5]
[361816151,1747823534324,-1185.11,0.0003452,5]
[361816152,1747823534334,-420.0,0.0003452,5]
[361816153,1747823534343,-3400.95,0.0003452,5]
[361816154,1747823534353,-618.99,0.0003452,5]
[361816155,1747823534363,-559.3,0.0003452,5]
[361816156,1747823534377,-2592.87,0.0003452,5]
[361816157,1747823534386,-729.48,0.0003452,5]
[361816158,1747823534396,-1036.77,0.0003452,5]
[361816159,1747823534406,-419.4169583,0.0003452,5]
[361816160,1747823534415,-912.69,0.0003452,5]
[361816161,1747823534425,-2077.17,0.0003452,5]
[361816162,1747823534434,-474.23,0.0003452,5]
[361816163,1747823534444,-633.02,0.0003452,5]
[361816164,1747823534453,-2143.32,0.0003452,5]
[361816165,1747823534463,-538.52935541,0.0003452,5]
[361816166,1747823534472,-2433.64,0.0003452,5]
[361816167,1747823534482,-2156.45,0.0003452,5]
[361816168,1747823534491,-680.33,0.0003452,5]
[361816169,1747823534502,-1587.63,0.0003452,5]
[361816170,1747823534512,-420.0,0.0003452,5]
[361816171,1747823534521,-3338.68,0.0003452,5]
[361816172,1747823534531,-420.0,0.0003452,5]
[361816173,1747823534540,-2132.67,0.0003452,5]
[361816174,1747823534550,-539.66,0.0003452,5]
[361816175,1747823534559,-1108.21,0.0003452,5]
[361816176,1747823534571,-420.0,0.0003452,5]
[361816177,1747823534581,-1448.56,0.0003452,5]
[361816178,1747823534590,-420.0,0.0003452,5]
[361816179,1747823534600,-1231.09,0.0003452,5]
[361816180,1747823534611,-1449.81,0.0003452,5]
[361816181,1747823534620,-420.0,0.0003452,5]
[361816182,1747823534630,-2507.82,0.0003452,5]
[361816183,1747823534640,-461.55,0.0003452,5]
[361816184,1747823534649,-420.0,0.0003452,5]
[361816185,1747823534658,-3289.43,0.0003452,5]
[361816186,1747823534668,-2269.59,0.0003452,5]
[361816187,1747823534678,-1017.25,0.0003452,5]
[361816188,1747823534688,-420.0,0.0003452,5]
[361816189,1747823534698,-1196.46,0.0003452,5]
[361816190,1747823534708,-420.0,0.0003452,5]
[361816191,1747823534719,-1902.38,0.0003452,5]
[361816192,1747823534729,-4528.11,0.0003452,5]
[361816193,1747823534739,-437.58,0.0003452,5]
[361816194,1747823534749,-2709.01,0.0003452,5]
[361816195,1747823534759,-934.68,0.0003452,5]
[361816196,1747823534768,-644.31,0.0003452,5]
[361816197,1747823534779,-3000.52,0.0003452,5]
[361816198,1747823534789,-169.25463849,0.0003452,5]
[361816199,1747823534798,-919.21,0.0003452,5]
[361816200,1747823534808,-2558.61,0.0003452,5]
[361816201,1747823534819,-420.0,0.0003452,5]
[361816202,1747823534829,-420.0,0.0003452,5]
[361816203,1747823534838,-3800.75,0.0003452,5]
[361816204,1747823534849,-1016.83,0.0003452,5]
[361816205,1747823534858,-420.0,0.0003452,5]
[361816206,1747823534867,-420.0,0.0003452,5]
[361816207,1747823534877,-525.13347317,0.0003452,5]
[361816208,1747823534887,-1283.86,0.0003452,5]
[361816209,1747823534897,-5012.54,0.0003452,5]
[361816210,1747823534907,-4257.36,0.0003452,5]
[361816211,1747823534916,-420.0,0.0003452,5]
[361816212,1747823534926,-420.0,0.0003452,5]
[361816213,1747823534935,-2661.46,0.0003452,5]
[361816214,1747823534944,-420.0,0.0003452,5]
[361816215,1747823534953,-420.0,0.0003452,5]
[361816216,1747823534963,-7175.57,0.0003452,5]
[361816217,1747823534972,-504.78702226,0.0003452,5]
[361816218,1747823534981,-1626.84,0.0003452,5]
[361816219,1747823534991,-420.0,0.0003452,5]
[361816220,1747823535001,-7478.95,0.0003452,5]
[361816221,1747823535011,-1297.42,0.0003452,5]
[361816222,1747823535020,-1050.66,0.0003452,5]
[361816223,1747823535029,-420.0,0.0003452,5]
[361816224,1747823535039,-459.54,0.0003452,5]
[361816225,1747823535049,-3186.22,0.0003452,5]
[361816226,1747823535058,-1603.59,0.0003452,5]
[361816227,1747823535069,-420.0,0.0003452,5]
[361816228,1747823535078,-1706.72,0.0003452,5]
[361816229,1747823535088,-1118.07,0.0003452,5]
[361816230,1747823535098,-1819.17,0.0003452,5]
[361816231,1747823535108,-3456.53,0.0003452,5]
[361816232,1747823535117,-477.62,0.0003452,5]
[361816233,1747823535127,-500.47,0.0003452,5]
[361816234,1747823535136,-1245.18,0.0003452,5]
[361816235,1747823535146,-485.82,0.0003452,5]
[361816236,1747823535155,-864.67,0.0003452,5]
[361816237,1747823535164,-1044.28,0.0003452,5]
[361816238,1747823535173,-483.53,0.0003452,5]
[361816239,1747823535183,-2279.99,0.0003452,5]
[361816240,1747823535192,-420.0,0.0003452,5]
[361816241,1747823535202,-1093.42,0.0003452,5]
[361816242,1747823535211,-773.61,0.0003452,5]
[361816243,1747823535221,-1587.6,0.0003452,5]
[361816244,1747823535230,-2000.0,0.0003452,5]
[361816245,1747823535239,-478.74,0.0003452,5]
[361816246,1747823535249,-3023.35,0.0003452,5]
[361816247,1747823535259,-2681.61,0.0003452,5]
[361816248,1747823535268,-420.0,0.0003452,5]
[361816249,1747823535278,-3921.51,0.0003452,5]
[361816250,1747823535287,-420.0,0.0003452,5]
[361816251,1747823535297,-774.74,0.0003452,5]
[361816252,1747823535306,-420.0,0.0003452,5]
[361816253,1747823535316,-11832.32,0.0003452,5]
[361816254,1747823535326,-1140.49,0.0003452,5]
[361816255,1747823535336,-716.85,0.0003452,5]
[361816256,1747823535346,-1451.14,0.0003452,5]
[361816257,1747823535355,-4169.63,0.0003452,5]
[361816258,1747823535367,-1980.16,0.0003452,5]
[361816259,1747823535376,-614.3,0.0003452,5]
[361816260,1747823535387,-1064.83,0.0003452,5]
[361816261,1747823535397,-1031.8,0.0003452,5]
[361816262,1747823535406,-2328.19,0.0003452,5]
[361816263,1747823535419,-420.0,0.0003452,5]
[361816264,1747823535430,-2178.09,0.0003452,5]
[361816265,1747823535440,-595.22,0.0003452,5]
[361816266,1747823535451,-420.0,0.0003452,5]
[361816267,1747823535462,-12779.36,0.0003452,5]
[361816268,1747823535472,-3199.69,0.0003452,5]
[361816269,1747823535482,-464.93,0.0003452,5]
[361816270,1747823535492,-1385.93,0.0003452,5]
[361816271,1747823535502,-3624.48,0.0003452,5]
[361816272,1747823535512,-1592.89,0.0003452,5]
[361816273,1747823535521,-420.0,0.0003452,5]
[361816274,1747823535531,-420.0,0.0003452,5]
[361816275,1747823535541,-3239.25,0.0003452,5]
[361816276,1747823535550,-420.0,0.0003452,5]
[361816277,1747823535559,-4626.37,0.0003452,5]
[361816278,1747823535569,-420.0,0.0003452,5]
[361816279,1747823535579,-1377.38,0.0003452,5]
[361816280,1747823535589,-613.45,0.0003452,5]
[361816281,1747823535598,-2100.46,0.0003452,5]
[361816282,1747823535610,-232873.01,0.0003452,5]
[361816283,1747823535619,-420.0,0.0003452,5]
[361816284,1747823535629,-203.92765711,0.0003452,5]
[361816285,1747823535639,-2870.6,0.0003452,5]
[361816286,1747823535650,-420.0,0.0003452,5]
[361816287,1747823535661,-420.0,0.0003452,5]
[361816288,1747823535672,-544.44,0.0003452,5]
[361816289,1747823535682,-2582.79,0.0003452,5]
[361816290,1747823535691,-1455.85,0.0003452,5]
[361816291,1747823535701,-3817.8,0.0003452,5]
[361816292,1747823535710,-1140.2,0.0003452,5]
[361816293,1747823535720,-1001.8,0.0003452,5]
[361816294,1747823535729,-814.19,0.0003452,5]
[361816295,1747823535739,-24741.12,0.0003452,5]
[361816296,1747823535749,-746.18,0.0003452,5]
[361816297,1747823535758,-1332.61,0.0003452,5]
[361816298,1747823535769,-847.4,0.0003452,5]
[361816299,1747823535779,-6653.58,0.0003452,5]
[361816300,1747823535789,-2208.36,0.0003452,5]
[361816301,1747823535799,-420.0,0.0003452,5]
[361816302,1747823535808,-3466.92,0.0003452,5]
[361816303,1747823535819,-756.27,0.0003452,5]
[361816304,1747823535829,-2780.98,0.0003452,5]
[361816305,1747823535840,-4377.12,0.0003452,5]
[361816306,1747823535850,-3727.2,0.0003452,5]
[361816307,1747823535860,-43430.9,0.0003452,5]
[361816308,1747823535870,-420.0,0.0003452,5]
[361816309,1747823535880,-1355.36,0.0003452,5]
[361816310,1747823535890,-662.42,0.0003452,5]
[361816311,1747823535902,-1646.2,0.0003452,5]
[361816312,1747823535913,-420.0,0.0003452,5]
[361816313,1747823535923,-692.1,0.0003452,5]
[361816314,1747823535933,-3823.68,0.0003452,5]
[361816315,1747823535944,-420.0,0.0003452,5]
[361816316,1747823535955,-1950.11,0.0003452,5]
[361816317,1747823535965,-420.0,0.0003452,5]
[361816318,1747823535975,-1929.18,0.0003452,5]
[361816319,1747823535987,-1375.19,0.0003452,5]
[361816320,1747823535997,-694.13,0.0003452,5]
[361816321,1747823536007,-27430.46,0.0003452,5]
[361816322,1747823536017,-420.0,0.0003452,5]
[361816323,1747823536027,-2620.97,0.0003452,5]
[361816324,1747823536037,-1035.87,0.0003452,5]
[361816325,1747823536048,-3873.45,0.0003452,5]
[361816326,1747823536058,-8392.23,0.0003452,5]
[361816327,1747823536069,-369.38774503,0.0003452,5]
[361816328,1747823536079,-831.34,0.0003452,5]
[361816329,1747823536090,-683.8,0.0003452,5]
[361816330,1747823536100,-420.0,0.0003452,5]
[361816331,1747823536110,-648.18,0.0003452,5]
[361816332,1747823536120,-333.94,0.0003452,5]
[361816333,1747823536129,-420.0,0.0003452,5]
[361816334,1747823536139,-2236.59,0.0003452,5]
[361816335,1747823536148,-862.9,0.0003452,5]
[361816336,1747823536158,-2431.99,0.0003452,5]
[361816337,1747823536167,-2055.72,0.0003452,5]
[361816338,1747823536177,-30819.65,0.0003452,5]
[361816339,1747823536186,-426.36,0.0003452,5]
[361816340,1747823536196,-3529.5,0.0003452,5]
[361816341,1747823536207,-420.0,0.0003452,5]
[361816342,1747823536218,-420.0,0.0003452,5]
[361816343,1747823536227,-420.0,0.0003452,5]
[361816344,1747823536238,-507.94,0.0003452,5]
[361816345,1747823536248,-7158.91,0.0003452,5]
[361816346,1747823536259,-1372.96,0.0003452,5]
[361816347,1747823536268,-1395.97,0.0003452,5]
[361816348,1747823536278,-11263.62,0.0003452,5]
[361816349,1747823536288,-10218.82,0.0003452,5]
[361816350,1747823536298,-420.0,0.0003452,5]
[361816351,1747823536314,-11955.57,0.0003452,5]
[361816352,1747823536325,-420.0,0.0003452,5]
[361816353,1747823536334,-903.34,0.0003452,5]
[361816354,1747823536343,-4237.43,0.0003452,5]
[361816355,1747823536353,-1156.02,0.0003452,5]
[361816356,1747823536363,-1250.1,0.0003452,5]
[361816357,1747823536377,-420.0,0.0003452,5]
[361816358,1747823536386,-1940.56,0.0003452,5]
[361816359,1747823536397,-1535.0,0.0003452,5]
[361816360,1747823536407,-2611.65,0.0003452,5]
[361816361,1747823536418,-2088.87,0.0003452,5]
[361816362,1747823536428,-420.0,0.0003452,5]
[361816363,1747823536438,-604.9,0.0003452,5]
[361816364,1747823536449,-436.47,0.0003452,5]
[361816365,1747823536459,-3994.4,0.0003452,5]
[361816366,1747823536469,-512.59,0.0003452,5]
[361816367,1747823536480,-4967.59,0.0003452,5]
[361816368,1747823536490,-420.0,0.0003452,5]
[361816369,1747823536501,-420.0,0.0003452,5]
[361816370,1747823536511,-997.3,0.0003452,5]
[361816371,1747823536522,-420.0,0.0003452,5]
[361816372,1747823536531,-6358.26,0.0003452,5]
[361816373,1747823536542,-2461.55,0.0003452,5]